bitfinex/quotes_BTCUSD_20250619
["timestamp","ask_amount","ask_price","bid_price","bid_amount"]
[1750319467584,0.63933632,104860.0,104850.0,0.29349731]
[1750319468026,0.63933632,104860.0,104850.0,0.30303419]
[1750319468217,0.63933629,104860.0,104850.0,0.30303419]
[1750319468467,0.4486058,104860.0,104850.0,0.30303364]
[1750319470988,0.44860579,104860.0,104850.0,0.30303364]
[1750319472393,0.63933628,104860.0,104850.0,0.29349685]
[1750319473472,0.27862389,104860.0,104850.0,0.29349685]
[1750319473737,0.63933681,104860.0,104850.0,0.29349685]
[1750319474480,0.63933681,104860.0,104850.0,0.28395997]
[1750319474692,0.62980102,104860.0,104850.0,0.28395997]
[1750319475149,0.62980102,104860.0,104850.0,0.274423]
[1750319475371,0.96308053,104860.0,104850.0,0.274423]
[1750319475598,0.95354419,104860.0,104850.0,0.27442345]
[1750319475837,0.95354419,104860.0,104850.0,0.0646]
[1750319476052,0.95354419,104860.0,104850.0,0.07413743]
[1750319476516,0.73037321,104860.0,104850.0,0.07413743]
[1750319476741,0.9211037,104860.0,104850.0,0.07413743]
[1750319479895,0.9211037,104860.0,104840.0,0.73799805]
[1750319480116,0.37024964,104850.0,104840.0,0.73799805]
[1750319480333,0.37024955,104850.0,104840.0,0.73799805]
[1750319480677,0.3797868,104850.0,104840.0,0.73799805]
[1750319480902,0.37024946,104850.0,104840.0,0.73799805]
[1750319481978,0.00953707,104850.0,104840.0,0.73799805]
[1750319482163,0.00953707,104850.0,104840.0,0.73999805]
[1750319482694,0.01907404,104850.0,104840.0,0.73999805]
[1750319483598,0.01907376,104850.0,104840.0,0.73999805]
[1750319484031,0.01907376,104850.0,104840.0,0.74099805]
[1750319484472,0.02861092,104850.0,104840.0,0.74099805]
[1750319484722,0.00953679,104850.0,104840.0,1.10171044]
[1750319484919,0.57051565,104860.0,104850.0,0.28376015]
[1750319485180,0.57946205,104860.0,104850.0,0.27422327]
[1750319485403,0.57946205,104860.0,104850.0,0.28376024]
[1750319485610,0.04709066,104860.0,104850.0,0.29329712]
[1750319486052,0.41733957,104860.0,104850.0,0.29329712]
[1750319486735,0.21046928,104860.0,104850.0,0.29329712]
[1750319487528,0.22954187,104860.0,104850.0,0.29329712]
[1750319488552,0.2619747,104860.0,104850.0,0.29329712]
[1750319488777,0.45270519,104860.0,104850.0,0.28376024]
[1750319491391,0.45270519,104860.0,104850.0,0.27422327]
[1750319491907,0.25177243,104860.0,104850.0,0.27422327]
[1750319492115,0.61248482,104860.0,104850.0,0.28376034]
[1750319492522,0.25177243,104860.0,104850.0,0.28376034]
[1750319492729,0.61248482,104860.0,104850.0,0.29329731]
[1750319494666,0.25177243,104860.0,104850.0,0.30283419]
[1750319494940,0.61248482,104860.0,104850.0,0.30283419]
[1750319495232,0.41221781,104860.0,104850.0,0.30283355]
[1750319495431,0.42175433,104860.0,104850.0,0.30283355]
[1750319495876,0.42175433,104860.0,104850.0,0.29329676]
[1750319495877,0.37024891,104860.0,104850.0,0.29329676]
[1750319496742,0.57051556,104860.0,104850.0,0.29329676]
[1750319497421,0.20980317,104860.0,104850.0,0.28375988]
[1750319497666,0.57051556,104860.0,104850.0,0.28375988]
[1750319498122,0.20980317,104860.0,104850.0,0.28375988]
[1750319498333,0.57051556,104860.0,104850.0,0.28375988]
[1750319498548,0.56097904,104860.0,104850.0,0.29329676]
[1750319498764,0.56991708,104860.0,104850.0,0.29329676]
[1750319500932,0.39825954,104860.0,104850.0,0.30283355]
[1750319502705,0.58899003,104860.0,104850.0,0.29329676]
[1750319503156,0.58898874,104860.0,104850.0,0.29329676]
[1750319503928,0.58898874,104860.0,104850.0,0.27422291]
[1750319504165,0.58898874,104860.0,104850.0,0.25514868]
[1750319504583,0.58898766,104860.0,104850.0,0.26468593]
[1750319505577,0.58898766,104860.0,104850.0,0.27422327]
[1750319506461,0.5889876,104860.0,104850.0,0.27422327]
[1750319507910,0.61186303,104860.0,104850.0,0.27422327]
[1750319508586,0.24161448,104860.0,104850.0,0.27422327]
[1750319508800,0.60232687,104860.0,104850.0,0.27422327]
[1750319509902,0.60232687,104860.0,104850.0,0.20982327]
[1750319509903,0.96303926,104860.0,104850.0,0.20982327]
[1750319510167,0.60232687,104860.0,104850.0,0.20982327]
[1750319510641,1.28396631,104860.0,104850.0,0.0319]
[1750319510878,0.21936034,104850.0,104840.0,0.50134329]
[1750319511124,0.25117138,104850.0,104840.0,0.65506329]
[1750319511376,0.61188377,104850.0,104840.0,0.53464329]
[1750319511613,0.61188377,104850.0,104840.0,0.24314329]
[1750319511839,0.59116436,104850.0,104840.0,0.20984329]
[1750319512053,0.95187675,104850.0,104840.0,0.21938127]
[1750319512715,0.95187675,104850.0,104840.0,0.24948127]
[1750319513441,0.95187675,104850.0,104840.0,0.23994329]
[1750319514536,0.95187675,104850.0,104840.0,0.03963834]
[1750319514783,0.95187675,104850.0,104830.0,0.0308]
[1750319514784,0.19076688,104840.0,104830.0,0.0308]
[1750319515013,0.19076688,104840.0,104820.0,0.72724258]
[1750319515014,0.01907805,104830.0,104820.0,0.72724258]
[1750319515301,0.37979044,104830.0,104820.0,0.72724258]
[1750319515990,0.3893296,104830.0,104820.0,0.72724258]
[1750319516711,0.3893296,104830.0,104820.0,0.72924258]
[1750319516935,0.39886885,104830.0,104820.0,0.72924258]
[1750319517248,0.39886885,104830.0,104820.0,0.73024258]
[1750319517897,0.03815646,104830.0,104820.0,0.73024258]
[1750319518347,0.04794184,104830.0,104820.0,0.73024258]
[1750319518565,0.05748054,104830.0,104820.0,0.57652258]
[1750319518814,0.02886306,104830.0,104820.0,0.73028258]
[1750319519041,0.02886306,104830.0,104820.0,1.09099497]
[1750319519042,0.00978538,104830.0,104820.0,1.09099497]
[1750319519277,0.01932381,104830.0,104820.0,1.09099497]
[1750319519488,0.01907704,104830.0,104820.0,1.09099497]
[1750319519707,0.02861583,104830.0,104820.0,1.09099497]
[1750319520220,0.03815481,104830.0,104820.0,1.09099497]
[1750319521090,0.02861583,104830.0,104820.0,1.09099497]
[1750319522046,0.02877132,104830.0,104820.0,1.09099497]
[1750319522522,0.03831011,104830.0,104820.0,1.09099497]
[1750319522747,0.03831002,104830.0,104820.0,1.09099497]
[1750319524837,0.02877132,104830.0,104820.0,1.09099497]
[1750319525444,0.3990226,104830.0,104820.0,0.57652258]
[1750319525695,0.37831021,104830.0,104820.0,0.57652258]
[1750319525910,0.38784928,104830.0,104820.0,1.09099497]
[1750319527381,0.37831021,104830.0,104820.0,1.09099497]
[1750319527611,0.38784928,104830.0,104820.0,1.09099497]
[1750319527828,0.74856167,104830.0,104820.0,0.73028258]
[1750319528029,0.74856158,104830.0,104820.0,0.73028258]
[1750319528435,0.75810065,104830.0,104820.0,0.73028258]
[1750319528773,0.74856158,104830.0,104820.0,0.73028258]
[1750319529643,0.38784919,104830.0,104820.0,0.73028258]
[1750319530575,0.39738826,104830.0,104820.0,0.73028258]
[1750319532034,0.01907805,104830.0,104820.0,0.73028258]
[1750319532659,0.03815555,104830.0,104820.0,0.73028258]
[1750319533610,0.04769398,104830.0,104820.0,0.73024258]
[1750319533945,0.02861593,104830.0,104820.0,0.73024258]
[1750319534618,0.35937724,104840.0,104820.0,0.73978192]
[1750319534830,0.0190775,104830.0,104820.0,0.73978192]
[1750319535251,0.37978989,104830.0,104820.0,0.73978192]
[1750319535740,0.37034257,104840.0,104820.0,1.08141453]
[1750319535980,0.00963018,104840.0,104830.0,0.65255301]
[1750319536417,0.3893235,104850.0,104840.0,0.28238081]
[1750319536630,0.3893235,104850.0,104840.0,0.43614081]
[1750319537277,0.40777671,104850.0,104840.0,0.43614081]
[1750319537490,0.58961016,104850.0,104840.0,0.42660329]
[1750319537720,0.59852622,104850.0,104840.0,0.43614136]
[1750319538152,0.59852622,104850.0,104840.0,0.44567934]
[1750319538386,0.60890191,104850.0,104840.0,0.45521722]
[1750319539534,0.60890191,104850.0,104840.0,0.45521676]
[1750319541193,0.41815323,104850.0,104840.0,0.4552163]
[1750319542063,0.44098924,104850.0,104840.0,0.4552163]
[1750319542724,0.4409919,104850.0,104840.0,0.4552163]
[1750319543867,0.63174058,104850.0,104840.0,0.43614081]
[1750319544082,0.62220351,104850.0,104840.0,0.43614081]
[1750319544724,0.43145483,104850.0,104840.0,0.44567851]
[1750319545227,0.43145488,104850.0,104840.0,0.44567851]
[1750319545684,0.07074249,104850.0,104840.0,0.44567851]
[1750319545935,0.74861887,104850.0,104840.0,0.44567851]
[1750319546161,0.77145488,104850.0,104840.0,0.44567851]
[1750319546942,0.77145735,104850.0,104840.0,0.44567851]
[1750319547147,0.76191992,104850.0,104840.0,0.43614081]
[1750319547353,0.77145735,104850.0,104840.0,0.44567851]
[1750319547513,0.76191992,104850.0,104840.0,0.44567851]
[1750319547923,0.76192022,104850.0,104840.0,0.44567851]
[1750319548539,0.77145765,104850.0,104840.0,0.44567851]
[1750319552435,0.96220633,104850.0,104840.0,0.43614081]
[1750319552659,0.96220633,104850.0,104840.0,0.42660293]
[1750319553106,0.94313174,104850.0,104840.0,0.21676]
[1750319553364,0.94313174,104850.0,104840.0,0.19499834]
[1750319553601,1.00891536,104850.0,104840.0,0.16329834]
[1750319553824,1.00891536,104850.0,104840.0,0.36360347]
[1750319554399,0.94313174,104850.0,104840.0,0.36360347]
[1750319554606,0.93359431,104850.0,104840.0,0.36360347]
[1750319555738,0.96479431,104850.0,104840.0,0.36360347]
[1750319555986,0.93359394,104850.0,104840.0,0.36360347]
[1750319557126,0.93359394,104850.0,104840.0,0.35406522]
[1750319557359,0.93359394,104850.0,104840.0,0.16329834]
[1750319557804,0.34953807,104840.0,104830.0,0.7269011]
[1750319558007,0.71025046,104840.0,104830.0,0.7269011]
[1750319558685,0.71978862,104840.0,104830.0,0.7269011]
[1750319559613,0.7293266,104840.0,104830.0,0.7269011]
[1750319560603,0.73886448,104840.0,104830.0,0.7269011]
[1750319561501,0.74840227,104840.0,104830.0,0.7269011]
[1750319561938,0.74840273,104840.0,104830.0,0.7269011]
[1750319562133,0.92963209,104840.0,104830.0,0.71736313]
[1750319562346,0.92963209,104840.0,104830.0,0.72690183]
[1750319562568,0.96140303,104840.0,104830.0,0.56356313]
[1750319562790,1.32211542,104840.0,104830.0,0.71732313]
[1750319563008,1.32211542,104840.0,104830.0,0.72686192]
[1750319563483,0.95186496,104840.0,104830.0,0.72686192]
[1750319563705,0.95186496,104840.0,104830.0,0.73640062]
[1750319567001,0.95186903,104840.0,104830.0,0.73640062]
[1750319567734,0.95186903,104840.0,104830.0,0.44490062]
[1750319568922,0.76110215,104840.0,104830.0,0.45443923]
[1750319569933,0.75156381,104840.0,104830.0,0.45443923]
[1750319572107,0.72871623,104840.0,104830.0,0.45443923]
[1750319572332,0.72871622,104840.0,104830.0,0.45443923]
[1750319572563,0.73825337,104840.0,104830.0,0.45443923]
[1750319572996,0.74779153,104840.0,104830.0,0.45443923]
[1750319573499,0.77064659,104840.0,104830.0,0.45443923]
[1750319573727,0.74779153,104840.0,104830.0,0.45443923]
[1750319574294,0.75732978,104840.0,104830.0,0.45443923]
[1750319574818,1.1180426,104840.0,104830.0,0.45443923]
[1750319575043,0.78018556,104840.0,104830.0,0.45443923]
[1750319575684,0.78018575,104840.0,104830.0,0.45443923]
[1750319580516,0.96141502,104840.0,104830.0,0.44490062]
[1750319581221,0.96141768,104840.0,104830.0,0.44490062]
[1750319581666,0.7706508,104840.0,104830.0,0.45443923]
[1750319582310,1.13136319,104840.0,104830.0,0.45443923]
[1750319582526,0.78018914,104840.0,104830.0,0.45443923]
[1750319583217,0.96141933,104840.0,104830.0,0.38270062]
[1750319583437,1.31259365,104840.0,104830.0,0.36354313]
[1750319583653,1.31259365,104840.0,104830.0,0.38500424]
[1750319583885,1.31259365,104840.0,104830.0,0.4040821]
[1750319584307,0.95188126,104840.0,104830.0,0.4040821]
[1750319584931,0.95188126,104840.0,104830.0,0.4342821]
[1750319585499,0.95188126,104840.0,104830.0,0.4438208]
[1750319585716,0.95188267,104840.0,104830.0,0.4438208]
[1750319587202,0.61188267,104840.0,104830.0,0.4438208]
[1750319588518,0.61188289,104840.0,104830.0,0.4438208]
[1750319589597,0.05086528,104840.0,104830.0,0.4438208]
[1750319589804,0.38872195,104840.0,104830.0,0.45335941]
[1750319590016,0.4115773,104840.0,104830.0,0.45335941]
[1750319593091,0.40203914,104840.0,104830.0,0.45335941]
[1750319593297,0.41157675,104840.0,104830.0,0.45335941]
[1750319593522,0.42111491,104840.0,104830.0,0.45335941]
[1750319593751,0.40264323,104840.0,104830.0,0.45335941]
[1750319593969,0.4121813,104840.0,104830.0,0.45335941]
[1750319594472,0.42111561,104840.0,104830.0,0.45335941]
[1750319594691,0.43065377,104840.0,104830.0,0.45335941]
[1750319594902,0.42111561,104840.0,104830.0,0.45335941]
[1750319595534,0.43065377,104840.0,104830.0,0.45335941]
[1750319596249,0.40779842,104840.0,104830.0,0.45335941]
[1750319596921,0.39886411,104840.0,104830.0,0.45335941]
[1750319597133,0.40779831,104840.0,104830.0,0.74485941]
[1750319597357,0.43066972,104840.0,104830.0,0.74485941]
[1750319597569,0.44020806,104840.0,104830.0,0.74485941]
[1750319597838,0.80092045,104840.0,104830.0,0.74485941]
[1750319598054,0.98214972,104840.0,104830.0,0.7353208]
[1750319598272,0.97261184,104840.0,104830.0,0.72578229]
[1750319598510,0.97261184,104840.0,104830.0,0.73532118]
[1750319598735,0.96307377,104840.0,104830.0,0.73532118]
[1750319599405,0.96307377,104840.0,104830.0,0.72578229]
[1750319599618,0.95353561,104840.0,104830.0,0.66458229]
[1750319599835,0.94399727,104840.0,104830.0,0.64550424]
[1750319600080,0.94399727,104840.0,104830.0,0.65504331]
[1750319600547,0.94399727,104840.0,104830.0,0.69738256]
[1750319600760,0.58328488,104840.0,104830.0,0.69738256]
[1750319600972,0.94399727,104840.0,104830.0,0.69738256]
[1750319601630,0.94399727,104840.0,104830.0,0.70692154]
[1750319601849,0.58328488,104840.0,104830.0,0.74756043]
[1750319602306,0.59282304,104840.0,104830.0,0.74755988]
[1750319602641,0.58388884,104840.0,104830.0,0.74755988]
[1750319602876,0.59282238,104840.0,104830.0,0.74755988]
[1750319603099,0.59282238,104840.0,104830.0,0.44652118]
[1750319603718,0.56995097,104840.0,104830.0,0.44652118]
[1750319603944,0.59282029,104840.0,104830.0,0.44652118]
[1750319604989,0.95353268,104840.0,104830.0,0.44652118]
[1750319605215,0.95353268,104840.0,104830.0,0.42744331]
[1750319605486,0.94399459,104840.0,104830.0,0.42744331]
[1750319608403,0.9439948,104840.0,104830.0,0.42744331]
[1750319609574,0.9439948,104840.0,104830.0,0.39634331]
[1750319610226,0.9439948,104840.0,104830.0,0.15368]
[1750319612375,0.9439948,104840.0,104820.0,0.72720175]
[1750319612599,0.37025137,104830.0,104820.0,0.72720175]
[1750319613474,0.01907777,104830.0,104820.0,0.72720175]
[1750319613690,0.37979016,104830.0,104820.0,0.72720175]
[1750319614128,0.37979016,104830.0,104820.0,0.72920175]
[1750319614563,0.38932886,104830.0,104820.0,0.72920175]
[1750319615647,0.39886747,104830.0,104820.0,0.72920175]
[1750319616649,0.39886747,104830.0,104820.0,0.73020175]
[1750319616863,0.39886738,104830.0,104820.0,0.73020175]
[1750319617083,0.38932849,104830.0,104820.0,0.73020175]
[1750319617337,0.3797897,104830.0,104820.0,0.73020175]
[1750319618560,0.38932859,104830.0,104820.0,0.73020175]
[1750319620310,0.0286162,104830.0,104820.0,0.73020175]
[1750319620539,0.38932859,104830.0,104820.0,0.73020175]
[1750319620757,0.3797897,104830.0,104820.0,0.73020175]
[1750319620968,0.38932849,104830.0,104820.0,0.73020175]
[1750319622098,0.39886738,104830.0,104820.0,0.73020175]
[1750319622472,0.38932849,104830.0,104820.0,0.73020175]
[1750319622933,0.15174655,104830.0,104820.0,0.73020175]
[1750319623612,0.16128525,104830.0,104820.0,0.73020175]
[1750319624598,0.17082386,104830.0,104820.0,0.73020175]
[1750319624921,0.0286161,104830.0,104820.0,0.73020175]
[1750319625374,0.01907731,104830.0,104820.0,1.09091414]
[1750319626909,0.0286162,104830.0,104820.0,1.09091414]
[1750319627418,0.0286161,104830.0,104820.0,1.09091414]
[1750319628941,0.03815508,104830.0,104820.0,1.09091414]
[1750319629166,0.0286161,104830.0,104820.0,1.09091414]
[1750319629509,0.03815499,104830.0,104820.0,1.09091414]
[1750319629733,0.04769406,104830.0,104820.0,1.09091414]
[1750319629966,0.04769406,104830.0,104820.0,1.0813748]
[1750319630213,0.58905066,104830.0,104820.0,0.69026315]
[1750319630867,0.22833827,104830.0,104820.0,0.69026315]
[1750319631129,0.58905066,104830.0,104820.0,0.69980285]
[1750319632273,0.58905066,104830.0,104820.0,0.73290285]
[1750319632517,0.58904779,104830.0,104820.0,0.73290285]
[1750319632728,0.58011422,104830.0,104820.0,0.73290285]
[1750319632965,0.6029822,104830.0,104820.0,0.73290285]
[1750319633924,0.61191432,104830.0,104820.0,0.73290285]
[1750319634281,0.6029822,104830.0,104820.0,0.73290285]
[1750319635513,0.58011422,104830.0,104820.0,0.73290285]
[1750319635982,0.60297822,104830.0,104820.0,0.73290285]
[1750319636467,0.58011422,104830.0,104820.0,0.73290285]
[1750319637668,0.61251568,104830.0,104820.0,0.74244246]
[1750319637867,0.58965338,104830.0,104820.0,0.73290285]
[1750319638744,0.61251518,104830.0,104820.0,0.73290285]
[1750319638957,0.58965338,104830.0,104820.0,0.73290285]
[1750319639546,0.58011459,104830.0,104820.0,0.69980285]
[1750319639990,0.602976,104830.0,104820.0,0.69980285]
[1750319640211,0.5705757,104830.0,104820.0,0.52704335]
[1750319640440,0.56103663,104830.0,104820.0,0.68072326]
[1750319641826,0.59282751,104830.0,104820.0,0.68072326]
[1750319642520,0.59282751,104830.0,104820.0,0.52704326]
[1750319642715,0.59282751,104830.0,104820.0,0.68072326]
[1750319643666,0.58328835,104830.0,104820.0,0.0352]
[1750319643890,0.58328835,104830.0,104820.0,0.18888]
[1750319644558,0.22257596,104830.0,104820.0,0.38922344]
[1750319644778,0.58328735,104830.0,104820.0,0.43006342]
[1750319645911,0.23211412,104830.0,104820.0,0.43960322]
[1750319646051,0.23211344,104830.0,104820.0,0.44914292]
[1750319646258,0.58389746,104830.0,104820.0,0.44914292]
[1750319646879,0.59343635,104830.0,104820.0,0.44914292]
[1750319647082,0.6029756,104830.0,104820.0,0.45868253]
[1750319647716,0.39311183,104830.0,104820.0,0.45868189]
[1750319647959,0.40265062,104830.0,104820.0,0.45868189]
[1750319648727,0.39311183,104830.0,104820.0,0.45868189]
[1750319648986,0.40265062,104830.0,104820.0,0.45868189]
[1750319650446,0.39311183,104830.0,104820.0,0.45868189]
[1750319650658,0.40265062,104830.0,104820.0,0.45868189]
[1750319650884,0.4121896,104830.0,104820.0,0.45868189]
[1750319651094,0.40265062,104830.0,104820.0,0.45868189]
[1750319651969,0.41218969,104830.0,104820.0,0.24160189]
[1750319652186,0.42172894,104830.0,104820.0,0.38574237]
[1750319652403,0.06101655,104830.0,104820.0,0.38574237]
[1750319652622,0.39886811,104830.0,104820.0,0.41584237]
[1750319652848,0.42172894,104830.0,104820.0,0.41584237]
[1750319653480,0.41218969,104830.0,104820.0,0.41584237]
[1750319653691,0.41218969,104830.0,104820.0,0.45708189]
[1750319654165,0.42172885,104830.0,104820.0,0.45708189]
[1750319654596,0.43066132,104830.0,104820.0,0.45708189]
[1750319655109,0.42172885,104830.0,104820.0,0.45708189]
[1750319655315,0.4306613,104830.0,104820.0,0.45708189]
[1750319656162,0.42112196,104830.0,104820.0,0.45708189]
[1750319656392,0.2120315,104830.0,104820.0,0.45708189]
[1750319656607,0.19810356,104830.0,104820.0,0.45708189]
[1750319656819,0.20824798,104830.0,104820.0,0.45708189]
[1750319657239,0.19870909,104830.0,104820.0,0.45708189]
[1750319657451,0.20824798,104830.0,104820.0,0.45708189]
[1750319657892,0.21718292,104830.0,104820.0,0.45708189]
[1750319658957,0.21718572,104830.0,104820.0,0.45708189]
[1750319659180,0.22672479,104830.0,104820.0,0.45708189]
[1750319659592,0.24960523,104830.0,104820.0,0.45708189]
[1750319659878,0.24006616,104830.0,104820.0,0.45708189]
[1750319660086,0.2267247,104830.0,104820.0,0.45708189]
[1750319660305,0.23626377,104830.0,104820.0,0.45708189]
[1750319660519,0.25914501,104830.0,104820.0,0.45708189]
[1750319660954,0.23626377,104830.0,104820.0,0.45708189]
[1750319661167,0.23626432,104830.0,104820.0,0.45708189]
[1750319661391,0.25914572,104830.0,104820.0,0.45708189]
[1750319662485,0.4211481,104830.0,104820.0,0.45708189]
[1750319662948,0.3982667,104830.0,104820.0,0.45708189]
[1750319663197,0.40780577,104830.0,104820.0,0.45708189]
[1750319663612,0.43068917,104830.0,104820.0,0.45708189]
[1750319663827,0.40780577,104830.0,104820.0,0.45708189]
[1750319664058,0.3982667,104830.0,104820.0,0.45708189]
[1750319664376,0.40780577,104830.0,104820.0,0.45708189]
[1750319664597,0.398268,104830.0,104820.0,0.45708189]
[1750319665023,0.41734623,104830.0,104820.0,0.45708189]
[1750319665456,0.41734678,104830.0,104820.0,0.45708189]
[1750319666420,0.44022893,104830.0,104820.0,0.45708189]
[1750319667534,0.63101401,104830.0,104820.0,0.45708189]
[1750319668178,0.62147512,104830.0,104820.0,0.44754237]
[1750319669417,0.59859297,104830.0,104820.0,0.44754237]
[1750319669621,0.62147068,104830.0,104820.0,0.44754237]
[1750319669822,0.61253164,104830.0,104820.0,0.44754237]
[1750319670030,0.62146818,104830.0,104820.0,0.44754237]
[1750319670198,0.62146815,104830.0,104820.0,0.44754237]
[1750319673089,0.62146776,104830.0,104820.0,0.44754237]
[1750319673311,0.40206492,104830.0,104820.0,0.45708189]
[1750319673518,0.42114278,104830.0,104820.0,0.45708189]
[1750319674392,0.44022037,104830.0,104820.0,0.45708189]
[1750319675551,0.07950798,104830.0,104820.0,0.45708189]
[1750319675765,0.41734266,104830.0,104820.0,0.45708189]
[1750319675980,0.44021903,104830.0,104820.0,0.45708189]
[1750319676709,0.44021922,104830.0,104820.0,0.45708189]
[1750319677725,0.43068006,104830.0,104820.0,0.45708189]
[1750319681748,0.43067997,104830.0,104820.0,0.45708189]
[1750319683040,0.43067997,104830.0,104820.0,0.74858189]
[1750319686648,0.421745,104830.0,104820.0,0.74858189]
[1750319686875,0.43068018,104830.0,104820.0,0.74858189]
[1750319687174,0.421745,104830.0,104820.0,0.74858189]
[1750319687415,0.43068003,104830.0,104820.0,0.74858189]
[1750319690086,0.43068001,104830.0,104820.0,0.74858189]
[1750319690499,0.43067992,104830.0,104820.0,0.74858189]
[1750319690919,0.44021899,104830.0,104820.0,0.74858189]
[1750319693120,0.44021896,104830.0,104820.0,0.74858189]
[1750319695025,0.07950657,104830.0,104820.0,0.74858189]
[1750319695241,0.41734125,104830.0,104820.0,0.74858189]
[1750319695475,0.44021896,104830.0,104820.0,0.74858189]
[1750319695791,0.44021969,104830.0,104820.0,0.74858189]
[1750319696008,0.44021973,104830.0,104820.0,0.74858189]
[1750319697420,0.41734202,104830.0,104820.0,0.74858189]
[1750319697678,0.44021593,104830.0,104820.0,0.74858189]
[1750319698723,0.43067667,104830.0,104820.0,0.74858189]
[1750319699818,0.43067666,104830.0,104820.0,0.74858189]
[1750319700024,0.44021573,104830.0,104820.0,0.74858189]
[1750319701573,0.44021645,104830.0,104820.0,0.74858189]
[1750319704220,0.44021654,104830.0,104820.0,0.74858189]
[1750319705091,0.43067738,104830.0,104820.0,0.74858189]
[1750319705313,0.62146246,104830.0,104820.0,0.58536237]
[1750319705547,0.61192367,104830.0,104820.0,0.71992333]
[1750319706232,0.60238478,104830.0,104820.0,0.71992333]
[1750319706711,0.60238478,104830.0,104820.0,0.42842333]
[1750319707067,0.60238465,104830.0,104820.0,0.42842333]
[1750319707310,0.59284567,104830.0,104820.0,0.42842333]
[1750319707986,0.59284561,104830.0,104820.0,0.42842333]
[1750319708422,0.59284561,104830.0,104820.0,0.43796313]
[1750319709276,0.59284561,104830.0,104820.0,0.44750283]
[1750319710544,0.59284561,104830.0,104820.0,0.29386283]
[1750319710751,0.59284561,104830.0,104820.0,0.37616313]
[1750319712833,0.59284495,104830.0,104820.0,0.37616313]
[1750319713338,0.59284495,104830.0,104820.0,0.21298333]
[1750319713585,0.58330588,104830.0,104820.0,0.35708344]
[1750319713812,0.94401827,104830.0,104820.0,0.35708335]
[1750319714246,0.94401827,104830.0,104820.0,0.15674]
[1750319714476,0.58330588,104830.0,104820.0,0.15674]
[1750319715582,0.58330584,104830.0,104820.0,0.15674]
[1750319716663,0.94401823,104830.0,104820.0,0.0031]
[1750319716908,0.94401823,104830.0,104820.0,0.15674]
[1750319717372,1.04016745,104830.0,104820.0,0.0031]
[1750319717590,1.04016745,104830.0,104820.0,0.15674]
[1750319717806,1.04016745,104830.0,104820.0,0.15574]
[1750319718489,1.04016661,104830.0,104820.0,0.15374]
[1750319718976,0.77221661,104830.0,104820.0,0.15374]
[1750319719783,1.11221661,104830.0,104820.0,0.0001]
[1750319720009,1.20845837,104830.0,104820.0,0.0001]
[1750319720213,1.27305837,104830.0,104820.0,0.0001]
[1750319720798,1.24095837,104830.0,104820.0,0.0001]
[1750319721177,1.33710759,104830.0,104820.0,0.0001]
[1750319721813,1.30460759,104830.0,104820.0,0.0001]
[1750319722233,1.38394844,104830.0,104820.0,0.0001]
[1750319722449,7.00527557,104830.0,104820.0,0.0001]
[1750319722659,7.03386795,104830.0,104820.0,0.0001]
[1750319723065,7.06254095,104830.0,104820.0,0.0001]
[1750319723716,6.40962128,104820.0,104810.0,0.0001]
[1750319723932,6.62880062,104820.0,104810.0,0.0001]
[1750319724147,6.62878219,104820.0,104810.0,0.0001]
[1750319724567,6.65780817,104820.0,104810.0,0.0001]
[1750319725627,6.81144817,104820.0,104810.0,0.0001]
[1750319726050,6.81344817,104820.0,104810.0,0.0001]
[1750319726492,7.16426943,104820.0,104810.0,0.0001]
[1750319726929,5.66840322,104810.0,104800.0,0.0001]
[1750319727135,7.14459519,104810.0,104800.0,0.0001]
[1750319727777,7.17327419,104810.0,104800.0,0.0001]
[1750319728802,7.17427419,104810.0,104800.0,0.0001]
[1750319729027,7.20286657,104810.0,104800.0,0.0001]
[1750319729230,6.84215418,104810.0,104800.0,0.0001]
[1750319729439,6.84115418,104810.0,104800.0,0.0001]
[1750319729643,6.83225036,104810.0,104800.0,0.0001]
[1750319729857,6.81254946,104810.0,104800.0,0.0001]
[1750319730058,6.81354946,104810.0,104800.0,0.0001]
[1750319730938,6.8392973,104810.0,104800.0,0.0001]
[1750319732468,5.26492234,104800.0,104790.0,0.0001]
[1750319732695,6.69516594,104800.0,104790.0,0.0001]
[1750319734002,6.69616594,104800.0,104790.0,0.0001]
[1750319734213,6.69816594,104800.0,104790.0,0.0001]
[1750319737162,6.69816594,104800.0,104790.0,0.0332]
[1750319740505,6.69816594,104800.0,104790.0,0.0647]
[1750319742637,6.4727586,104800.0,104790.0,0.0647]
[1750319742851,6.67314009,104800.0,104790.0,0.0647]
[1750319743264,6.57699087,104800.0,104790.0,0.0647]
[1750319743465,6.57699087,104800.0,104790.0,0.0332]
[1750319744300,6.57699087,104800.0,104790.0,0.0648]
[1750319748060,6.58588193,104800.0,104790.0,0.0648]
[1750319749485,6.62500193,104800.0,104790.0,0.0648]
[1750319749703,6.72115115,104800.0,104790.0,0.0648]
[1750319752707,6.74974353,104800.0,104790.0,0.0648]
[1750319754874,6.78783916,104800.0,104790.0,0.0648]
[1750319755520,6.78786678,104800.0,104790.0,0.0648]
[1750319755976,7.16312002,104800.0,104790.0,0.0648]
[1750319756222,7.16312002,104800.0,104790.0,0.0001]
[1750319756453,7.13452764,104800.0,104790.0,0.0001]
[1750319756888,7.16320764,104800.0,104790.0,0.0001]
[1750319758445,7.16321622,104800.0,104790.0,0.0001]
[1750319759859,7.16321622,104800.0,104790.0,0.0333]
[1750319760693,6.80250383,104800.0,104790.0,0.0333]
[1750319761728,6.79357657,104800.0,104790.0,0.0333]
[1750319762481,7.163212,104800.0,104790.0,0.0001]
[1750319762683,6.80249961,104800.0,104790.0,0.0001]
[1750319762873,6.79357657,104800.0,104790.0,0.0001]
[1750319763074,6.80249953,104800.0,104790.0,0.0001]
[1750319763276,7.22591192,104800.0,104790.0,0.0001]
[1750319763701,7.22591182,104800.0,104790.0,0.0001]
[1750319764535,0.54539875,104790.0,104770.0,0.0305]
[1750319764788,0.53089433,104770.0,104760.0,0.08629949]
[1750319764991,1.28461157,104770.0,104760.0,0.07675405]
[1750319765197,0.92389918,104770.0,104760.0,0.07675405]
[1750319765858,0.93281109,104770.0,104760.0,0.07675405]
[1750319766129,1.02896031,104770.0,104760.0,0.0001]
[1750319766365,1.3896727,104770.0,104760.0,0.00964562]
[1750319766589,1.02896031,104770.0,104760.0,0.00964562]
[1750319767003,1.0200484,104770.0,104760.0,0.00964562]
[1750319767212,1.29288914,104770.0,104760.0,0.0001]
[1750319767459,6.70202309,104770.0,104760.0,0.0001]
[1750319767691,6.70202309,104770.0,104760.0,0.0623]
[1750319768363,6.34131028,104770.0,104760.0,0.0633]
[1750319770599,6.33240414,104770.0,104760.0,0.0633]
[1750319772783,6.11962529,104770.0,104760.0,0.0633]
[1750319772995,6.31051962,104770.0,104760.0,0.0633]
[1750319774108,6.15683962,104770.0,104760.0,0.0633]
[1750319774326,6.31051962,104770.0,104760.0,0.0633]
[1750319774761,6.11812864,104770.0,104760.0,0.27330344]
[1750319775202,6.11812864,104770.0,104760.0,0.27330353]
[1750319775432,6.11812864,104770.0,104760.0,0.28284888]
[1750319775646,6.0953808,104770.0,104760.0,0.28284888]